bitfinex-derivatives/quotes_ETHF0:USTF0_20240831
["timestamp","ask_amount","ask_price","bid_price","bid_amount"]
[1725141294423,1.28,2524.5,2524.3,3.4487724]
[1725141294823,1.28,2524.5,2524.4,1.41224327]
[1725141296731,1.28,2524.5,2524.4,0.57534401]
[1725141299226,1.28,2524.5,2524.3,3.2110824]
[1725141299427,0.6776,2524.4,2524.3,3.2110824]
[1725141299730,0.6776,2524.4,2524.3,3.78677011]
[1725141300837,0.6776,2524.4,2524.3,3.78677805]
[1725141303339,0.6776,2524.4,2524.3,3.2110824]
[1725141310949,0.6776,2524.4,2524.3,0.0032824]
[1725141311633,0.91529,2524.4,2524.3,0.0032824]
[1725141312244,0.6776,2524.4,2524.3,0.0032824]
[1725141318742,1.50677,2524.6,2524.3,3.9648824]
[1725141319048,1.28,2524.4,2524.3,0.0032824]
[1725141326439,1.51769,2524.4,2524.3,0.0032824]
[1725141326642,13.04032835,2524.4,2524.3,0.0032824]
[1725141326857,19.04032835,2524.4,2524.3,0.0032824]
[1725141327155,0.23776,2523.7,2523.5,4.113]
[1725141327358,3.2433,2523.6,2523.1,1.62474377]
[1725141327548,1.28,2523.3,2523.2,0.57623251]
[1725141327945,1.28,2523.3,2523.2,4.53943251]
[1725141328344,1.28,2523.3,2523.2,0.57628368]
[1725141328942,1.28,2523.3,2523.0,3.79491]
[1725141329144,1.28,2523.3,2523.1,0.57633283]
[1725141329351,1.28,2523.3,2523.0,3.79491]
[1725141333062,1.28,2523.3,2523.0,3.44561]
[1725141333249,1.28,2523.3,2523.0,3.79501]
[1725141334461,1.28,2523.1,2523.0,3.44561]
[1725141334861,1.28,2523.1,2523.0,7.40881]
[1725141335054,1.28,2523.1,2523.0,3.44561]
[1725141335251,1.28,2523.1,2523.0,7.40881]
[1725141336051,1.28,2523.1,2523.0,3.44561]
[1725141337051,1.9303,2523.1,2523.0,3.44562]
[1725141339768,1.9303,2523.1,2523.0,3.2078]
[1725141339953,1.9303,2523.1,2522.9,0.23782]
[1725141342860,1.9303,2523.1,2522.8,0.23783]
[1725141343657,1.28,2522.9,2522.8,0.23783]
[1725141343857,1.28,2522.9,2522.7,0.58724]
[1725141344055,1.28,2522.9,2522.7,0.58725]
[1725141344258,1.28,2522.9,2522.7,4.55125]
[1725141344464,1.28,2522.9,2522.7,4.20185]
[1725141345161,0.6311,2522.8,2522.7,4.20185]
[1725141345562,0.6311,2522.8,2522.7,3.964]
[1725141346065,3.2014,2522.8,2522.6,3.2078]
[1725141346656,3.2014,2522.8,2522.3,8.48459147]
[1725141346860,3.2014,2522.8,2522.3,4.37159147]
[1725141346861,1.28,2522.5,2522.3,4.37159147]
[1725141347060,1.28,2522.5,2522.3,4.02179147]
[1725141347272,1.3574,2522.4,2522.3,3.44568]
[1725141347470,2.6374,2522.4,2522.1,0.771]
[1725141347668,3.2606,2522.4,2522.1,0.771]
[1725141348275,3.2606,2522.4,2522.1,0.2379]
[1725141348471,1.28,2522.2,2522.1,0.2379]
[1725141349472,1.28,2522.2,2522.0,3.44571]
[1725141349777,1.28,2522.2,2522.0,3.2078]
[1725141351077,1.28,2522.2,2521.9,0.23792]
[1725141351375,1.28,2522.0,2521.9,0.23792]
[1725141356764,1.28,2522.0,2521.7,3.2078]
[1725141356966,1.28,2521.8,2521.7,3.44574]
[1725141357167,1.28,2521.8,2521.5,0.23796]
[1725141357358,1.892,2521.9,2521.5,0.23796]
[1725141357359,1.28,2521.6,2521.5,0.23796]
[1725141357763,1.28,2521.6,2521.5,4.20356]
[1725141359274,1.28,2521.6,2521.5,0.23796]
[1725141360068,1.28,2521.6,2521.4,0.23797]
[1725141360273,3.2131,2521.5,2521.4,0.23797]
[1725141361266,3.2131,2521.5,2521.3,0.23798]
[1725141361973,3.2131,2521.5,2521.4,0.23797]
[1725141362580,1.9173,2521.5,2521.4,4.20357]
[1725141363367,1.9173,2521.5,2521.4,0.23797]
[1725141363666,1.9173,2521.5,2521.2,3.2078]
[1725141363667,1.9173,2521.5,2521.3,0.23797]
[1725141363867,2.5577,2521.4,2521.3,0.23797]
[1725141369083,2.5577,2521.4,2521.2,3.44579]
[1725141369581,2.5577,2521.4,2521.2,3.2078]
[1725141372281,2.5577,2521.4,2521.1,4.74207297]
[1725141372480,1.28,2521.2,2521.1,4.74207297]
[1725141377088,1.28,2521.2,2520.9,3.44582]
[1725141377387,1.28,2521.0,2520.9,3.44582]
[1725141377786,1.916,2521.0,2520.9,3.44582]
[1725141378287,1.916,2521.0,2520.9,3.2078]
[1725141378588,1.916,2521.0,2520.8,0.23802]
[1725141379385,1.916,2521.0,2520.9,0.23802]
[1725141379783,1.916,2521.0,2520.6,7.6552]
[1725141379784,1.916,2521.0,2520.8,0.23802]
[1725141379986,0.636,2521.0,2520.9,0.23802]
[1725141380287,1.916,2521.0,2520.9,0.23802]
[1725141381882,1.916,2521.0,2520.8,0.23802]
[1725141382080,1.28,2520.9,2520.8,0.23802]
[1725141390293,1.28,2520.9,2520.7,0.23803]
[1725141390599,1.9311,2520.8,2520.7,0.23803]
[1725141392999,1.9311,2520.8,2520.6,3.44584]
[1725141393199,0.6573,2520.7,2520.6,3.44584]
[1725141393591,0.6573,2520.7,2520.6,7.41304]
[1725141396398,0.6573,2520.7,2520.6,4.20524]
[1725141400706,0.6573,2520.7,2520.6,4.78275242]
[1725141402204,0.6573,2520.7,2520.6,0.81555242]
[1725141402807,0.6573,2520.7,2520.6,4.78275242]
[1725141403105,0.6573,2520.7,2520.6,0.57751242]
[1725141403309,0.6573,2520.7,2520.5,3.44585]
[1725141403496,1.8967,2520.6,2520.5,3.44585]
[1725141403696,1.8967,2520.6,2520.5,4.02339315]
[1725141404001,1.8967,2520.6,2520.5,3.78534315]
[1725141404710,1.8967,2520.6,2520.5,4.02339315]
[1725141405203,1.8967,2520.6,2520.5,3.78534315]
[1725141406403,1.8967,2520.6,2520.2,3.44588]
[1725141406623,1.28,2520.4,2520.2,3.44588]
[1725141407011,1.28,2520.4,2520.3,1.41800776]
[1725141407304,1.28,2520.4,2520.3,0.57775881]
[1725141408304,1.28,2520.4,2520.0,0.2381]
[1725141408513,1.28,2520.1,2520.0,0.2381]
[1725141408810,1.28,2520.1,2520.0,1.65645382]
[1725141409111,1.28,2520.1,2520.0,0.81589768]
[1725141409306,1.28,2520.1,2520.0,0.57779768]
[1725141410202,1.28,2520.1,2520.0,0.57792322]
[1725141410408,1.28,2520.1,2519.9,3.2078]
[1725141410604,1.2963,2520.0,2519.9,3.2078]
[1725141410803,1.2963,2520.0,2519.9,3.78576409]
[1725141411003,15.80809127,2520.0,2519.6,3.2078]
[1725141411203,1.28,2519.7,2519.6,3.2078]
[1725141419016,1.28,2519.7,2519.3,3.44596]
[1725141419317,3.2078,2519.8,2519.3,3.44596]
[1725141419318,1.28,2519.5,2519.3,3.44596]
[1725141419511,0.6167,2519.4,2519.3,3.44596]
[1725141420316,0.6167,2519.4,2519.3,3.2078]
[1725141421819,0.6167,2519.4,2519.2,0.23817]
[1725141422014,1.9306,2519.3,2519.2,0.23817]
[1725141422422,1.9306,2519.3,2519.2,4.20777]
[1725141424114,1.28,2519.3,2519.2,4.20777]
[1725141425318,1.28,2519.3,2519.2,0.23817]
[1725141429733,0.6167,2519.4,2519.3,0.23817]
[1725141429920,1.8967,2519.4,2519.3,0.23817]
[1725141430414,1.8967,2519.4,2519.2,0.23817]
[1725141430618,1.28,2519.3,2519.2,0.23817]
[1725141431322,1.28,2519.3,2519.1,0.23818]
[1725141431622,0.6167,2519.4,2519.1,0.23818]
[1725141431623,1.28,2519.2,2519.1,0.23818]
[1725141431828,1.9087,2519.2,2519.1,0.23818]
[1725141432017,1.9087,2519.2,2519.1,4.20778]
[1725141432221,1.9087,2519.2,2519.1,3.9696]
[1725141432222,1.28,2519.2,2519.1,3.9696]
[1725141432428,1.28,2519.2,2519.0,3.5415]
[1725141432429,1.28,2519.2,2519.0,3.2078]
[1725141432925,0.64574224,2519.6,2519.0,3.44599]
[1725141432926,1.28,2519.1,2519.0,3.44599]
[1725141436529,1.9118,2519.5,2519.1,0.23819]
[1725141436833,1.28,2519.2,2519.0,3.44599]
[1725141437132,1.931,2519.1,2519.0,3.44599]
[1725141442135,1.931,2519.1,2519.0,3.2078]
[1725141442327,5.9006,2519.1,2518.7,3.2078]
[1725141442533,1.28,2518.8,2518.7,3.2078]
[1725141444640,5.2504,2518.8,2518.7,3.2078]
[1725141444940,15.82245313,2518.8,2518.7,3.2078]
[1725141446243,1.931,2519.1,2518.7,3.2078]
[1725141446537,1.931,2519.1,2518.7,3.44603]
[1725141446538,1.28,2518.8,2518.7,3.44603]
[1725141447138,1.28,2518.8,2518.7,3.2078]
[1725141447331,1.28,2518.8,2518.7,3.44603]
[1725141448136,1.28,2518.8,2518.7,3.2078]
[1725141448544,1.28,2518.8,2518.7,3.44603]
[1725141448839,1.28,2518.8,2518.7,3.2078]
[1725141454739,5.2504,2518.8,2518.7,3.2078]
[1725141460142,5.2504,2518.8,2518.6,3.2078]
[1725141460346,3.2409,2518.7,2518.6,3.2078]
[1725141460841,7.2113,2518.7,2518.6,3.2078]
[1725141465047,7.2113,2518.7,2518.3,3.44606]
[1725141465246,1.28,2518.4,2518.3,3.44606]
[1725141465442,1.28,2518.4,2518.3,4.02544258]
[1725141466144,1.28,2518.4,2518.3,3.44606]
[1725141466353,1.28,2518.4,2518.3,4.02544786]
[1725141466853,1.28,2518.4,2518.3,4.0254519]
[1725141469256,1.28,2518.4,2518.3,3.44606]
[1725141469555,1.28,2518.4,2518.3,4.02543545]
[1725141470651,1.28,2518.4,2518.3,3.78717545]
[1725141471949,1.28,2518.4,2518.3,3.2078]
[1725141474345,1.28,2518.4,2518.3,3.78728162]
[1725141475852,1.28,2518.4,2518.3,3.2078]
[1725141476157,1.28,2518.4,2518.3,3.78728504]
[1725141477464,1.28,2518.4,2518.3,4.02554504]
[1725141479153,1.28,2518.4,2518.3,4.02544323]
[1725141480453,1.28,2518.4,2518.3,4.86834513]
[1725141481550,1.28,2518.4,2518.3,3.44606]
[1725141481961,1.28,2518.4,2518.3,4.86828685]
[1725141482455,1.9609,2518.7,2518.6,0.23823]
[1725141482655,4.194,2519.1,2518.6,3.78702724]
[1725141482858,1.9425,2519.0,2518.8,0.23821]
[1725141483453,1.9425,2519.0,2518.9,0.57900187]
[1725141483660,1.9425,2519.0,2518.9,0.57900875]
[1725141483962,0.00594224,2519.6,2518.6,3.2078]
[1725141484159,1.9942,2519.4,2519.2,0.23817]
[1725141484361,1.28,2519.3,2519.2,0.23817]
[1725141484568,1.28,2519.3,2519.2,0.81691701]
[1725141484757,0.00594224,2519.6,2519.4,0.23816]
[1725141484975,1.28,2519.5,2519.4,3.44596]
[1725141485565,1.28,2519.5,2519.4,4.02457682]
[1725141486061,0.00594224,2519.6,2519.5,0.23815]
[1725141486270,1.28594224,2519.6,2519.5,4.78556682]
[1725141486762,0.00594224,2519.6,2519.5,10.78556682]
[1725141486966,0.00594224,2519.6,2519.5,11.62708441]
[1725141487353,0.00594224,2519.6,2519.5,10.78556682]
[1725141487658,0.00594224,2519.6,2519.5,11.62702812]
[1725141488367,0.00594224,2519.6,2519.5,11.62681362]
[1725141488560,0.00594224,2519.6,2519.5,10.78536072]
[1725141488768,0.00594224,2519.6,2519.5,11.62675808]
[1725141489065,1.28,2520.2,2519.5,12.17153627]
[1725141489365,1.28,2520.2,2520.1,3.2078]
[1725141489754,1.28,2520.2,2520.1,7.1758]
[1725141489955,0.00595415,2520.4,2520.1,7.41389]
[1725141490261,0.00595415,2520.4,2520.2,0.23808]
[1725141490262,1.28595415,2520.4,2520.2,0.23808]
[1725141490955,0.00595415,2520.4,2520.3,4.20607]
[1725141491172,0.00595415,2520.4,2520.3,0.23807]
[1725141491471,0.00595415,2520.4,2520.3,4.20607]
[1725141492168,0.00595415,2520.4,2520.3,10.20607]
[1725141492367,0.00595415,2520.4,2520.3,4.20607]
[1725141492857,0.00595415,2520.4,2520.3,10.20607]
[1725141495367,0.00595415,2520.4,2520.3,4.20607]
[1725141495565,0.00595415,2520.4,2520.3,3.968]
[1725141495963,0.00595415,2520.4,2520.1,3.44589]
[1725141499963,0.62755415,2520.4,2520.1,3.44589]
[1725141504178,0.62755415,2520.4,2520.2,0.23808]
[1725141504671,0.00595415,2520.4,2520.2,4.20608]
[1725141504877,0.00595415,2520.4,2520.3,3.968]
[1725141505276,0.00595415,2520.4,2520.3,4.20607]
[1725141505871,0.00595415,2520.4,2520.3,10.20607]
[1725141506076,0.00595415,2520.4,2520.3,4.20607]
[1725141506373,0.00595415,2520.4,2520.3,10.20607]
[1725141506572,0.00595415,2520.4,2520.3,4.20607]
[1725141506770,0.00595415,2520.4,2520.3,10.20607]
[1725141507162,0.00595415,2520.4,2520.3,10.71677]
[1725141510077,0.00595415,2520.4,2520.1,4.8509982]
[1725141510078,0.00595415,2520.4,2520.1,3.2078]
[1725141510475,0.00595415,2520.4,2520.1,3.44589]
[1725141512582,0.00595415,2520.4,2520.2,3.968]
[1725141512778,0.00595415,2520.4,2520.2,4.479]
[1725141513079,0.00595415,2520.4,2520.3,3.968]
[1725141513572,0.00595415,2520.4,2520.3,4.20607]
[1725141515475,0.00595415,2520.4,2520.3,11.48607]
[1725141515670,0.00267982,2520.4,2520.3,11.48607]
[1725141518083,0.00267982,2520.4,2520.3,5.48607]
[1725141518578,0.00267982,2520.4,2520.3,11.48607]
[1725141520089,0.00267982,2520.4,2520.3,5.48607]
[1725141521378,0.00267982,2520.4,2520.3,11.48607]
[1725141521790,0.00267982,2520.4,2520.3,5.48607]
[1725141522282,0.00267982,2520.4,2520.3,11.48607]
[1725141522490,0.00267982,2520.4,2520.3,5.48607]
[1725141522696,0.00267982,2520.4,2520.3,11.48607]
[1725141522894,0.00267982,2520.4,2520.1,3.2078]
[1725141529501,0.65637982,2520.4,2520.1,3.2078]
[1725141529691,0.6555,2520.3,2520.1,3.2078]
[1725141529892,0.6555,2520.3,2519.9,4.11895415]
[1725141529893,5.9035,2520.3,2519.9,4.11895415]
[1725141531293,5.9035,2520.3,2520.0,0.57814802]
[1725141531603,5.9035,2520.3,2519.9,0.00595415]
[1725141532004,5.9035,2520.3,2520.0,0.57818634]
[1725141532200,5.9035,2520.3,2519.9,0.00595415]
[1725141532501,5.9035,2520.3,2520.0,0.57819172]
[1725141532796,5.9035,2520.3,2519.9,0.00595415]
[1725141533105,5.9035,2520.3,2520.0,0.5781854]
[1725141533299,5.9035,2520.3,2519.9,0.00595415]
[1725141533505,5.9035,2520.3,2520.0,0.57819061]
[1725141533700,5.9035,2520.3,2520.1,0.57819061]
[1725141533900,5.9035,2520.3,2519.9,0.00595415]
[1725141534093,5.9035,2520.3,2520.0,0.57823153]
[1725141534296,5.9035,2520.3,2519.9,0.00595415]
[1725141534594,5.9035,2520.3,2520.0,0.57825307]
[1725141534797,5.9035,2520.3,2519.9,0.00595415]
[1725141535000,5.9035,2520.3,2520.0,0.57824969]
[1725141535204,5.9035,2520.3,2519.9,0.00595415]
[1725141535505,5.9035,2520.3,2520.0,0.578266]
[1725141535704,5.9035,2520.3,2519.9,0.00595415]
[1725141535902,5.9035,2520.3,2520.0,0.57834648]
[1725141536104,5.9035,2520.3,2519.9,0.00595415]
[1725141536299,5.9035,2520.3,2520.0,0.57837667]
[1725141536499,5.9035,2520.3,2519.9,0.00595415]
[1725141536700,1.28,2520.1,2520.0,0.57838812]
[1725141536919,1.28,2520.1,2519.9,0.00595415]
[1725141537203,5.2591,2520.0,2519.5,7.55894]
[1725141537510,1.2911,2520.0,2519.6,1.42019598]
[1725141537707,1.2911,2520.0,2519.7,0.57854523]
[1725141537906,1.28,2519.9,2519.5,3.44594]
[1725141538207,1.28,2519.9,2519.6,1.42023119]
[1725141538410,1.28,2519.9,2519.5,3.2078]
[1725141538903,1.28,2519.9,2519.6,0.57857577]
[1725141539214,1.28,2519.9,2519.5,3.2078]
[1725141539215,1.28,2519.9,2519.5,3.44595]
[1725141539503,1.28,2519.9,2519.6,0.5785902]
[1725141539708,1.28,2519.9,2519.5,3.44595]
[1725141540014,1.28,2519.9,2519.6,0.57857954]
[1725141540310,1.28,2519.9,2519.5,3.2078]
[1725141540503,0.6089,2519.8,2519.6,0.5785657]
[1725141540802,0.6089,2519.8,2519.5,3.2078]
[1725141541010,0.6089,2519.8,2519.6,0.57856498]
[1725141541306,0.6089,2519.8,2519.5,3.44595]
[1725141541499,0.6089,2519.8,2519.6,0.57856119]
[1725141541698,0.6089,2519.8,2519.5,3.2078]
[1725141541900,0.6089,2519.8,2519.6,0.57856701]
[1725141542103,0.6089,2519.8,2519.5,3.2078]
[1725141542402,0.6089,2519.8,2519.6,0.57856661]
[1725141542609,0.6089,2519.8,2519.5,3.2078]
[1725141542806,0.6089,2519.8,2519.6,0.57854753]
[1725141543005,0.6089,2519.8,2519.5,3.2078]
[1725141543196,0.6089,2519.8,2519.6,0.57850816]
[1725141543399,0.6089,2519.8,2519.5,3.2078]
[1725141543601,0.6089,2519.8,2519.6,0.57851327]
[1725141543808,0.6089,2519.8,2519.5,3.2078]
[1725141544009,0.6089,2519.8,2519.6,0.57851483]
[1725141544214,0.6089,2519.8,2519.5,3.2078]
[1725141552212,3.9688,2519.7,2519.4,0.00330213]
[1725141552516,0.6495,2519.6,2519.4,0.00330213]
[1725141552716,1.2864,2519.6,2519.4,0.00330213]
[1725141552916,5.2552,2519.6,2519.4,0.00330213]
[1725141558611,1.28,2519.5,2519.4,0.00330213]
[1725141558812,5.48695,2519.5,2519.4,0.00330213]
[1725141560211,15.76677797,2519.5,2518.5,3.2078]
[1725141560418,1.28,2519.1,2518.5,4.4371]
[1725141560613,1.24,2519.0,2518.7,0.23822]
[1725141560920,1.24,2519.0,2518.6,0.23823]
[1725141561620,1.28,2518.7,2518.6,0.23823]
[1725141561822,1.28,2518.7,2518.2,3.44607]
[1725141562025,0.6475,2518.6,2518.2,3.8366]
[1725141563420,0.6031,2518.5,2518.2,3.8366]
[1725141564215,1.2116,2518.5,2518.2,3.8366]
[1725141567027,1.28,2518.4,2518.2,0.6288]
[1725141572830,3.9712,2518.3,2518.1,4.75239116]
[1725141573028,1.28,2518.2,2517.8,0.86801]
[1725141573233,0.6439,2518.1,2517.8,0.6297]
[1725141574222,0.5531,2518.0,2517.8,0.6297]
[1725141579335,3.2078,2518.8,2517.8,1.9097]
[1725141579533,1.28,2518.7,2518.2,0.23827]
[1725141579731,1.28,2518.7,2518.3,1.1164]
[1725141583641,1.28,2518.7,2518.4,0.49175]
[1725141583939,1.28,2518.7,2518.3,1.1164]
[1725141584122,1.28,2518.7,2518.3,1.35466]
[1725141585539,1.28,2518.7,2518.3,1.1164]
[1725141587836,1.28,2518.7,2518.3,1.35466]
[1725141588627,1.28,2518.5,2518.3,1.35466]
[1725141592135,1.28,2518.5,2518.4,3.2078]
[1725141599246,1.28,2518.5,2518.3,0.5432]
[1725141599437,1.1281,2518.4,2518.3,0.78146]
[1725141599838,1.1281,2518.4,2518.3,4.75266]
[1725141600435,1.1281,2518.4,2518.3,4.5144]
[1725141600639,2.4081,2518.4,2518.2,0.23827]
[1725141600838,0.5268,2518.3,2518.2,0.23827]
[1725141601045,1.1281,2518.4,2518.2,0.23827]
[1725141601948,1.1281,2518.4,2518.3,0.77436]
[1725141602150,0.5268,2518.9,2518.3,0.5361]
[1725141602445,0.00595415,2519.1,2519.0,0.2382]
[1725141602651,0.00595415,2519.1,2519.0,3.446]
[1725141602942,0.00595415,2519.1,2519.0,4.02378921]
[1725141603451,0.00595415,2519.1,2519.0,7.99338921]
[1725141604147,0.00595415,2519.1,2519.0,4.86425568]
[1725141604355,0.00595415,2519.1,2519.0,4.02378921]
[1725141604741,0.00595415,2519.1,2519.0,8.83384036]
[1725141604938,0.00595415,2519.1,2519.0,7.99338921]
[1725141605244,0.00595415,2519.1,2519.0,8.83385431]
[1725141605442,0.00595415,2519.1,2519.0,7.99338921]
[1725141606137,0.00595415,2519.1,2519.0,8.83384761]
[1725141606341,0.00595415,2519.1,2519.0,7.4156]
[1725141606541,0.00595415,2519.1,2519.0,7.99331607]
[1725141607444,0.00595415,2519.1,2519.0,7.99331618]
[1725141608247,0.00595415,2519.1,2519.0,15.27331618]
[1725141608455,0.00595415,2519.1,2519.0,16.11363804]
[1725141608756,3.2078,2520.2,2520.0,0.2381]
[1725141608956,0.521,2520.1,2520.0,0.2381]
[1725141609353,0.521,2520.1,2520.0,4.2061]
[1725141609556,0.521,2520.1,2520.0,7.4139]
[1725141610046,0.521,2520.1,2520.0,7.1758]
[1725141610950,0.521,2520.1,2520.0,7.4139]
[1725141611150,0.00595415,2520.3,2520.2,0.23808]
[1725141611560,0.00595415,2520.3,2520.2,4.20608]
[1725141612552,0.00595415,2520.3,2520.2,3.968]
[1725141618055,0.00595415,2520.3,2520.2,4.20608]
[1725141619764,0.00595415,2520.3,2520.2,4.74178]
[1725141622766,0.00595415,2520.3,2520.0,3.2078]
[1725141623159,0.53595415,2520.3,2520.0,3.2078]
[1725141623358,0.5089,2520.2,2520.0,3.2078]
[1725141623955,5.7569,2520.2,2520.0,3.2078]
[1725141624459,4.4769,2520.2,2520.0,3.2078]
[1725141625268,4.71499,2520.2,2520.0,3.2078]
[1725141625465,3.968,2520.1,2519.8,0.00595415]
[1725141625770,0.5089,2520.2,2519.8,0.00595415]
[1725141627070,0.74698,2520.2,2519.8,0.00595415]
[1725141627271,4.71498,2520.2,2519.8,0.00595415]
[1725141628065,4.4769,2520.2,2519.8,0.00595415]
[1725141630262,0.5089,2520.2,2519.8,0.00595415]
[1725141631068,0.74698,2520.2,2519.8,0.00595415]
[1725141633774,0.5089,2520.2,2519.8,0.00595415]
[1725141634069,0.74698,2520.2,2519.8,0.00595415]
[1725141634875,4.71498,2520.2,2519.8,0.00595415]
[1725141639273,0.74698,2520.2,2519.8,0.00595415]
[1725141642683,0.2381,2520.1,2519.8,0.00595415]
[1725141642881,8.66473179,2520.1,2519.8,0.00595415]
[1725141643079,3.968,2520.0,2519.8,0.00595415]
[1725141643588,4.4797,2519.9,2519.8,0.00595415]
[1725141643777,0.5109,2519.9,2519.8,0.00595415]
[1725141643976,4.4797,2519.9,2519.8,0.00595415]
[1725141644180,0.23813,2519.8,2519.2,0.23817]
[1725141644474,0.73674,2519.7,2519.1,0.95645148]
[1725141644674,0.23814,2519.6,2519.1,0.95645148]
[1725141644888,0.23816,2519.4,2519.1,0.57727148]
[1725141645185,0.487,2519.3,2519.1,0.57727148]
[1725141645485,0.4986,2519.2,2519.1,0.57727148]
[1725141646386,5.7582,2519.2,2519.1,0.57727148]
[1725141648683,16.41952143,2519.2,2519.1,0.57727148]
[1725141649087,0.23819,2519.1,2518.9,3.2078]
[1725141649391,1.29,2519.0,2518.9,3.2078]
[1725141649583,5.7687,2519.0,2518.9,3.2078]
[1725141652081,6.0069,2519.0,2518.4,0.23825]
[1725141652278,1.29,2518.5,2518.2,3.2078]
[1725141652592,2.01996,2518.4,2517.8,0.23831]
[1725141652792,2.01996,2518.4,2517.7,2.3184]
[1725141652793,1.52827,2518.2,2517.7,2.3184]
[1725141652985,1.52827,2518.2,2517.7,1.0284]
[1725141653387,1.29,2518.2,2517.7,1.0284]
[1725141653682,1.29,2518.0,2517.7,1.0284]
[1725141653887,1.29,2518.0,2517.6,3.2078]
[1725141654279,0.2383,2518.0,2517.6,3.2078]
[1725141654483,0.23829,2518.1,2517.6,3.2078]
[1725141654780,0.4936,2517.9,2517.6,3.2078]
[1725141656199,0.4936,2517.9,2517.6,3.44613]
[1725141656800,0.4936,2517.9,2517.6,3.2078]
[1725141659593,0.4936,2517.9,2517.6,3.44612]
[1725141659987,0.4936,2517.9,2517.7,0.523]
[1725141660493,3.09,2518.2,2517.7,0.76132]
[1725141660689,3.6169,2518.2,2517.7,0.76132]
[1725141662202,3.6169,2518.2,2517.7,0.523]
[1725141662589,3.6169,2518.2,2517.7,0.76132]
[1725141665200,3.6169,2518.2,2517.7,0.523]
[1725141665797,3.6169,2518.2,2517.7,0.76132]
[1725141666907,0.5269,2518.2,2517.9,0.2383]
[1725141667999,0.5269,2518.2,2517.7,0.523]
[1725141668398,0.5269,2518.2,2517.8,0.23831]
[1725141668607,0.5269,2518.2,2517.9,0.2383]
[1725141669498,0.5269,2518.2,2518.0,0.5271]
[1725141671496,0.5269,2518.2,2517.6,3.7072]
[1725141671497,3.6169,2518.2,2517.6,3.2078]
[1725141672117,0.23828,2518.1,2517.6,3.2078]
[1725141673807,3.6169,2518.2,2517.6,3.2078]
[1725141673808,3.85518,2518.2,2517.6,3.2078]
[1725141674909,3.85518,2518.2,2517.6,3.44613]
[1725141675209,0.5269,2518.2,2518.0,0.23828]
[1725141676315,0.5269,2518.2,2517.9,0.7511]
[1725141678710,0.5269,2518.2,2518.0,0.23829]
[1725141678904,0.5269,2518.2,2517.9,0.7511]
[1725141679307,0.4842,2518.3,2518.0,0.23829]
[1725141680603,0.4842,2518.3,2517.9,0.7511]
[1725141689825,0.4842,2518.3,2517.9,0.2383]
[1725141694627,1.29,2518.1,2517.6,3.44612]
[1725141694819,1.29,2518.1,2517.7,0.57905744]
[1725141695019,1.52828,2518.1,2517.6,3.2078]
[1725141695322,1.29,2518.1,2517.7,0.57917556]
[1725141695522,1.29,2518.1,2517.8,0.57917556]
[1725141695826,1.29,2518.1,2517.6,3.44613]
[1725141696029,1.29,2518.1,2517.7,0.57924015]
[1725141696322,1.52828,2518.1,2517.8,0.57924015]
[1725141696518,1.52828,2518.1,2517.6,3.44613]
[1725141696718,1.52828,2518.1,2517.7,0.57917787]
[1725141696931,1.52828,2518.1,2517.8,0.57917787]
[1725141697227,1.52828,2518.1,2517.6,3.2078]
[1725141697422,1.52828,2518.1,2517.7,1.4218673]
[1725141697628,1.52828,2518.1,2517.6,3.2078]
[1725141697629,1.52828,2518.1,2517.8,0.57920826]
[1725141697827,1.29,2518.0,2517.6,3.2078]
[1725141698025,1.52831,2517.8,2517.7,0.57926524]
[1725141698220,1.52831,2517.8,2517.6,3.2078]
[1725141698418,0.5226,2517.7,2517.6,3.2078]
[1725141698817,0.5226,2517.7,2517.6,0.57934526]
[1725141700030,0.5226,2517.7,2517.3,0.23835]
[1725141700220,1.29,2517.6,2517.4,0.57939732]
[1725141700422,1.29,2517.6,2517.5,0.57939732]
[1725141701328,1.29,2517.6,2517.2,0.23836]
[1725141701528,1.29,2517.6,2517.3,1.42244766]
[1725141701724,1.29,2517.6,2517.4,0.57944115]
[1725141701924,1.29,2517.6,2517.2,0.23836]
[1725141702126,1.29,2517.6,2517.3,1.4224033]
[1725141702320,1.29,2517.6,2517.0,0.9664]
[1725141702321,0.23833,2517.6,2517.4,0.57942355]
[1725141702526,1.29,2517.4,2517.0,1.20478]
[1725141702722,1.0324,2517.3,2517.1,1.42249762]
[1725141702933,1.556,2517.3,2517.2,1.42249762]
[1725141704327,1.556,2517.3,2517.2,0.57946118]
[1725141704928,5.5288,2517.3,2517.2,0.57946118]
[1725141705326,5.5288,2517.3,2516.9,3.44619]
[1725141705633,1.556,2517.3,2517.0,1.42259152]
[1725141705935,1.29,2517.2,2517.1,0.5794986]
[1725141707334,1.29,2517.2,2516.9,3.44619]
[1725141707534,1.29,2517.2,2517.0,0.57953392]
[1725141707736,1.29,2517.2,2516.9,3.44619]
[1725141707929,1.29,2517.2,2517.0,0.57953308]
[1725141708135,1.29,2517.2,2516.9,3.44619]
[1725141708339,1.29,2517.2,2517.0,0.57952539]
[1725141708635,1.29,2517.2,2516.9,3.44619]
[1725141708636,1.29,2517.2,2516.9,0.23839]
[1725141708841,1.29,2517.2,2517.0,0.57950598]
[1725141709039,1.29,2517.2,2516.9,0.23839]
[1725141709336,1.29,2517.2,2517.0,0.57941877]
[1725141709537,1.29,2517.2,2516.9,0.23839]
[1725141709739,1.29,2517.2,2517.0,0.57937085]
[1725141709928,1.29,2517.2,2516.9,0.23839]
[1725141710122,1.29,2517.2,2517.0,0.57939093]